fUST/lending_fUST_20250226
["ID","MTS","AMOUNT","RATE_DAILY","PERIOD"]
[354452288,1740505855178,153.0,6.849e-05,2]
[354452289,1740505855382,153.0,6.849e-05,2]
[354452290,1740505906841,153.0,6.849e-05,2]
[354452291,1740505907056,153.0,6.849e-05,2]
[354452292,1740505907260,153.0,6.849e-05,2]
[354452293,1740505907484,153.0,6.849e-05,2]
[354452294,1740505907702,153.0,6.849e-05,2]
[354452295,1740505907957,153.0,6.849e-05,2]
[354452296,1740505908126,153.0,6.849e-05,2]
[354452297,1740505908357,153.0,6.849e-05,2]
[354452298,1740505909444,153.0,6.849e-05,2]
[354452299,1740505909512,153.0,6.849e-05,2]
[354452300,1740505966243,2000.0,0.00040969,30]
[354452301,1740505966440,2000.0,0.00040969,30]
[354452302,1740505966799,848.0,0.00040969,30]
[354452303,1740505972319,156.79,0.000266,31]
[354452304,1740505974871,153.0,6.849e-05,2]
[354452305,1740505975082,153.0,6.849e-05,2]
[354452306,1740505975292,153.0,6.849e-05,2]
[354452307,1740505975498,153.0,6.849e-05,2]
[354452308,1740505975714,153.0,6.849e-05,2]
[354452309,1740505975919,153.0,6.849e-05,2]
[354452310,1740505976130,153.0,6.849e-05,2]
[354452311,1740505976575,153.0,6.849e-05,2]
[354452313,1740506027235,153.0,6.849e-05,2]
[354452314,1740506027416,153.0,6.849e-05,2]
[354452315,1740506028196,153.0,6.849e-05,2]
[354452316,1740506028725,153.0,6.849e-05,2]
[354452317,1740506028770,153.0,6.849e-05,2]
[354452318,1740506028936,153.0,6.849e-05,2]
[354452319,1740506029139,153.0,6.849e-05,2]
[354452322,1740506054207,755.91932265,0.00029,10]
[354452323,1740506087758,153.0,6.849e-05,2]
[354452324,1740506087995,153.0,6.849e-05,2]
[354452325,1740506088383,153.0,6.849e-05,2]
[354452326,1740506088616,153.0,6.849e-05,2]
[354452327,1740506089444,153.0,6.849e-05,2]
[354452328,1740506089663,153.0,6.849e-05,2]
[354452329,1740506151010,153.0,6.849e-05,2]
[354452330,1740506151207,153.0,6.849e-05,2]
[354452331,1740506151410,153.0,6.849e-05,2]
[354452332,1740506151735,153.0,6.849e-05,2]
[354452333,1740506151946,153.0,6.849e-05,2]
[354452334,1740506152180,153.0,6.849e-05,2]
[354452335,1740506152457,153.0,6.849e-05,2]
[354452336,1740506206791,153.0,6.849e-05,2]
[354452337,1740506206993,153.0,6.849e-05,2]
[354452338,1740506207197,153.0,6.849e-05,2]
[354452339,1740506207408,153.0,6.849e-05,2]
[354452340,1740506207620,153.0,6.849e-05,2]
[354452341,1740506207837,153.0,6.849e-05,2]
[354452342,1740506266347,153.0,6.849e-05,2]
[354452343,1740506266573,153.0,6.849e-05,2]
[354452344,1740506266801,153.0,6.849e-05,2]
[354452345,1740506267005,153.0,6.849e-05,2]
[354452346,1740506267222,153.0,6.849e-05,2]
[354452347,1740506330693,153.0,6.849e-05,2]
[354452348,1740506330912,153.0,6.849e-05,2]
[354452349,1740506331223,153.0,6.849e-05,2]
[354452350,1740506331598,153.0,6.849e-05,2]
[354452351,1740506346907,1500.0,0.00040944,30]
[354452352,1740506374883,1000.0,0.00029,10]
[354452353,1740506381423,1000.0,0.00029,120]
[354452354,1740506387059,153.0,6.849e-05,2]
[354452355,1740506387268,153.0,6.849e-05,2]
[354452356,1740506387515,153.0,6.849e-05,2]
[354452357,1740506446532,153.0,6.849e-05,2]
[354452358,1740506446646,153.0,6.849e-05,2]
[354452359,1740506446859,153.0,6.849e-05,2]
[354452360,1740506494773,1000.0,0.0003,120]
[354452361,1740506517792,153.0,6.849e-05,2]
[354452362,1740506518540,153.0,6.849e-05,2]
[354452363,1740506518597,153.0,6.849e-05,2]
[354452364,1740506563988,848.0,0.00040943,30]
[354452365,1740506570632,153.0,6.849e-05,2]
[354452366,1740506570843,153.0,6.849e-05,2]
[354452367,1740506574376,156.79,0.000266,31]
[354452368,1740506607718,1000.0,0.0003,10]
[354452369,1740506626325,153.0,6.849e-05,2]
[354452370,1740506673519,329.21933495,0.00029,10]
[354452371,1740506675150,329.21933495,0.00029,10]
[354452372,1740506694170,153.0,6.849e-05,2]
[354452373,1740506694379,153.0,6.849e-05,2]
[354452374,1740506727085,1367.1866,0.00040943,30]
[354452375,1740506745664,153.0,6.849e-05,2]
[354452376,1740506805954,153.0,6.849e-05,2]
[354452377,1740506806166,153.0,6.849e-05,2]
[354452449,1740507032924,-151.0,0.00032779,2]
[354452452,1740507032934,-163.0,0.0003278,2]
[354452455,1740507032944,-17891.02329818,0.0003278,2]
[354452586,1740507040720,-3376.21762466,0.0003278,2]
[354452587,1740507040732,-1000.0,0.0003278,2]
[354452621,1740507059364,-630.34281321,0.0003278,2]
[354452622,1740507059714,-2002.41626395,0.0003278,2]
[354452623,1740507059724,-1288.30199334,0.00033688,83]
[354452624,1740507059734,-237.0667857,0.00033788,2]
[354452625,1740507059744,-358.15380701,0.000339,6]
[354452626,1740507059753,-160.0,0.00034728,2]
[354452627,1740507059763,-358.15380683,0.00034762,7]
[354452628,1740507059773,-682.616,0.00034854,40]
[354452629,1740507059782,-5312.29386998,0.00034888,2]
[354452630,1740507059792,-163.51450269,0.000349,2]
[354452631,1740507059804,-19584.4124536,0.00035,120]
[354452632,1740507059813,-201.22562,0.00035,120]
[354452633,1740507059822,-358.15380683,0.00035624,7]
[354452634,1740507059831,-358.15380683,0.00036486,7]
[354452635,1740507059841,-358.15380683,0.00037348,7]
[354452636,1740507059850,-163.51450266,0.00037614,2]
[354452637,1740507059859,-1000.0,0.00038,120]
[354452638,1740507059869,-358.15380683,0.0003821,8]
[354452639,1740507059878,-500.0,0.00038356,30]
[354452640,1740507059887,-500.0,0.0003863,32]
[354452641,1740507059897,-1288.30199331,0.00038734,113]
[354452642,1740507059906,-500.0,0.00038904,34]
[354452643,1740507059917,-358.15380683,0.00039072,8]
[354452644,1740507059927,-500.0,0.00039178,36]
[354452645,1740507059936,-500.0,0.00039452,38]
[354452646,1740507059946,-500.0,0.00039726,40]
[354452647,1740507059956,-500.0,0.00039773,35]
[354452648,1740507059968,-500.0,0.00039873,12]
[354452649,1740507059977,-358.15380683,0.00039934,8]
[354452650,1740507059987,-1000.0,0.0004,30]
[354452651,1740507059996,-1000.0,0.0004,30]
[354452652,1740507060008,-1000.0,0.0004,30]
[354452653,1740507060018,-1000.0,0.0004,30]
[354452654,1740507060027,-1000.0,0.0004,30]
[354452655,1740507060037,-609.28,0.0004,120]
[354452656,1740507060047,-500.0,0.0004,42]
[354452657,1740507060057,-500.0,0.00040173,59]
[354452658,1740507060067,-500.0,0.00040273,44]
[354452659,1740507060076,-163.51450266,0.00040329,28]
[354452660,1740507060086,-500.0,0.00040373,40]
[354452661,1740507060095,-500.0,0.00040473,46]
[354452662,1740507060104,-840.347289,0.00040513,4]
[354452663,1740507060114,-500.0,0.00040547,46]
[354452664,1740507060124,-500.0,0.00040573,84]
[354452665,1740507060133,-500.0,0.00040673,88]
[354452666,1740507060144,-500.0,0.00040773,111]
[354452667,1740507060155,-358.15380683,0.00040797,8]
[354452668,1740507060167,-500.0,0.00040821,48]
[354452669,1740507060176,-500.0,0.00040873,17]
[354452670,1740507060186,-5000.0,0.000409,120]
[354452671,1740507060196,-1000.0,0.000409,120]
[354452672,1740507060206,-7779.0669699,0.00040932,4]
[354452673,1740507060216,-500.0,0.00040942,31]
[354452674,1740507060225,-500.0,0.00040942,31]
[354452675,1740507060236,-500.0,0.00040942,31]
[354452676,1740507060245,-406.68592246,0.00040942,31]
[354452677,1740507060256,-500.0,0.00040942,31]
[354452678,1740507060266,-500.0,0.00040942,2]
[354452679,1740507060275,-500.0,0.00040942,31]
[354452680,1740507060285,-500.0,0.00040942,2]
[354452681,1740507060294,-500.0,0.00040942,31]
[354452682,1740507060303,-500.0,0.00040942,2]
[354452683,1740507060313,-500.0,0.00040942,31]
[354452684,1740507060322,-500.0,0.00040942,2]
[354452685,1740507060332,-500.0,0.00040942,31]
[354452686,1740507060342,-500.0,0.00040942,2]
[354452687,1740507060352,-500.0,0.00040942,31]
[354452688,1740507060362,-500.0,0.00040942,31]
[354452689,1740507060372,-500.0,0.00040942,2]
[354452690,1740507060383,-500.0,0.00040942,31]
[354452691,1740507060392,-500.0,0.00040942,31]
[354452692,1740507060402,-500.0,0.00040942,2]
[354452693,1740507060411,-500.0,0.00040942,31]
[354452694,1740507060426,-500.0,0.00040942,31]
[354452695,1740507060436,-500.0,0.00040942,2]
[354452696,1740507060446,-500.0,0.00040942,31]
[354452697,1740507060457,-500.0,0.00040942,2]
[354452698,1740507060466,-500.0,0.00040942,31]
[354452699,1740507060477,-500.0,0.00040942,2]
[354452700,1740507060486,-500.0,0.00040942,31]
[354452701,1740507060496,-500.0,0.00040942,31]
[354452702,1740507060506,-500.0,0.00040942,2]
[354452703,1740507060516,-500.0,0.00040942,31]
[354452704,1740507060525,-500.0,0.00040942,31]
[354452705,1740507060535,-273.69032095,0.00040942,2]
[354452706,1740507060544,-500.0,0.00040942,31]
[354452707,1740507060554,-500.0,0.00040942,31]
[354452708,1740507060563,-500.0,0.00040942,31]
[354452709,1740507060573,-500.0,0.00040942,31]
[354452710,1740507060582,-500.0,0.00040942,2]
[354452711,1740507060592,-500.0,0.00040942,31]
[354452712,1740507060601,-500.0,0.00040942,31]
[354452713,1740507060611,-500.0,0.00040942,31]
[354452714,1740507060620,-500.0,0.00040942,31]
[354452715,1740507060630,-500.0,0.00040942,31]
[354452716,1740507060640,-500.0,0.00040942,31]
[354452717,1740507060649,-500.0,0.00040942,31]
[354452718,1740507060658,-500.0,0.00040942,31]
[354452719,1740507060672,-500.0,0.00040942,31]
[354452720,1740507060682,-500.0,0.00040942,31]
[354452721,1740507060693,-500.0,0.00040942,31]
[354452722,1740507060703,-500.0,0.00040942,31]
[354452723,1740507060713,-500.0,0.00040942,31]
[354452724,1740507060723,-500.0,0.00040942,31]
[354452725,1740507060733,-500.0,0.00040942,31]
[354452726,1740507060742,-500.0,0.00040942,31]
[354452727,1740507060752,-500.0,0.00040942,31]
[354452728,1740507060762,-500.0,0.00040942,31]
[354452729,1740507060772,-500.0,0.00040942,31]
[354452730,1740507060782,-500.0,0.00040942,31]
[354452731,1740507060791,-500.0,0.00040942,31]
[354452732,1740507060801,-500.0,0.00040942,31]
[354452733,1740507060810,-500.0,0.00040942,31]
[354452734,1740507060820,-500.0,0.00040942,31]
[354452735,1740507060830,-500.0,0.00040942,31]
[354452736,1740507060839,-500.0,0.00040942,31]
[354452737,1740507060849,-500.0,0.00040942,31]
[354452738,1740507060858,-500.0,0.00040942,31]
[354452739,1740507060868,-500.0,0.00040942,31]
[354452740,1740507060877,-500.0,0.00040942,31]
[354452741,1740507060887,-500.0,0.00040942,31]
[354452742,1740507060896,-500.0,0.00040942,31]
[354452743,1740507060905,-500.0,0.00040942,31]
[354452744,1740507060918,-500.0,0.00040942,31]
[354452745,1740507060927,-500.0,0.00040942,31]
[354452746,1740507060937,-500.0,0.00040942,31]
[354452747,1740507060946,-500.0,0.00040942,31]
[354452748,1740507060958,-500.0,0.00040942,31]
[354452749,1740507060968,-500.0,0.00040942,31]
[354452750,1740507060978,-500.0,0.00040942,31]
[354452751,1740507060988,-500.0,0.00040942,31]
[354452752,1740507060998,-397.29908828,0.00040942,31]
[354452753,1740507061008,-500.0,0.00040942,31]
[354452754,1740507061017,-500.0,0.00040942,31]
[354452755,1740507061026,-500.0,0.00040942,31]
[354452756,1740507061037,-500.0,0.00040942,31]
[354452757,1740507061047,-500.0,0.00040942,31]
[354452758,1740507061056,-500.0,0.00040942,31]
[354452759,1740507061065,-500.0,0.00040942,31]
[354452760,1740507061075,-500.0,0.00040942,31]
[354452761,1740507061085,-500.0,0.00040942,31]
[354452762,1740507061094,-500.0,0.00040942,31]
[354452763,1740507061104,-500.0,0.00040942,31]
[354452764,1740507061114,-500.0,0.00040942,31]
[354452765,1740507061124,-500.0,0.00040942,31]
[354452766,1740507061133,-500.0,0.00040942,31]
[354452767,1740507061143,-500.0,0.00040942,31]
[354452768,1740507061153,-500.0,0.00040942,31]
[354452769,1740507061163,-500.0,0.00040942,31]
[354452770,1740507061178,-500.0,0.00040942,31]
[354452771,1740507061188,-500.0,0.00040942,31]
[354452772,1740507061199,-500.0,0.00040942,31]
[354452773,1740507061209,-500.0,0.00040942,31]
[354452774,1740507061219,-500.0,0.00040942,31]
[354452775,1740507061229,-500.0,0.00040942,31]
[354452776,1740507061239,-500.0,0.00040942,31]
[354452777,1740507061249,-500.0,0.00040942,31]
[354452778,1740507061259,-500.0,0.00040942,31]
[354452779,1740507061268,-500.0,0.00040942,31]
[354452780,1740507061278,-500.0,0.00040942,31]
[354452781,1740507061456,-500.0,0.00040942,31]
[354452782,1740507061466,-404.57920766,0.00040942,31]
[354452783,1740507061476,-500.0,0.00040942,31]
[354452784,1740507061487,-500.0,0.00040942,31]
[354452785,1740507061497,-500.0,0.00040942,31]
[354452786,1740507061507,-500.0,0.00040942,31]
[354452787,1740507061517,-500.0,0.00040942,31]
[354452788,1740507061527,-500.0,0.00040942,31]
[354452789,1740507061537,-500.0,0.00040942,31]
[354452790,1740507061546,-500.0,0.00040942,31]
[354452791,1740507061556,-500.0,0.00040942,31]
[354452792,1740507061565,-350.00000001,0.00040942,31]
[354452793,1740507061575,-500.0,0.00040942,31]
[354452794,1740507061585,-500.0,0.00040942,31]
[354452795,1740507061595,-500.0,0.00040942,31]
[354452796,1740507061605,-500.0,0.00040942,31]
[354452797,1740507061615,-500.0,0.00040942,31]
[354452798,1740507061624,-500.0,0.00040942,31]
[354452799,1740507061633,-500.0,0.00040942,31]
[354452800,1740507061643,-500.0,0.00040942,31]
[354452801,1740507061652,-500.0,0.00040942,31]
[354452802,1740507061661,-500.0,0.00040942,31]
[354452803,1740507061673,-500.0,0.00040942,31]
[354452804,1740507061683,-500.0,0.00040942,31]
[354452805,1740507061692,-500.0,0.00040942,31]
[354452806,1740507061701,-500.0,0.00040942,31]
[354452807,1740507061710,-500.0,0.00040942,31]
[354452808,1740507061720,-500.0,0.00040942,31]
[354452809,1740507061729,-500.0,0.00040942,31]
[354452810,1740507061739,-500.0,0.00040942,31]
[354452811,1740507061748,-500.0,0.00040942,31]
[354452812,1740507061757,-500.0,0.00040942,31]
[354452813,1740507061767,-500.0,0.00040942,31]
[354452814,1740507061777,-500.0,0.00040942,31]
[354452815,1740507061786,-500.0,0.00040942,31]
[354452816,1740507061796,-500.0,0.00040942,31]
[354452817,1740507061805,-500.0,0.00040942,31]
[354452818,1740507061814,-300.0,0.00040942,31]
[354452819,1740507061823,-500.0,0.00040942,31]
[354452820,1740507061832,-500.0,0.00040942,31]
[354452821,1740507061842,-500.0,0.00040942,31]
[354452822,1740507061851,-500.0,0.00040942,31]
[354452823,1740507061861,-97106.90502322,0.00040943,7]
[354452824,1740507061876,-512.17113104,0.00040943,7]
[354452825,1740507061886,-9419.89733172,0.00040943,2]
[354452826,1740507061896,-29151.6317987,0.00040943,2]
[354452827,1740507061908,-261.34264779,0.00040943,2]
[354452828,1740507176389,156.8,0.000266,31]
[354452829,1740507393912,25000.0,0.00040944,30]
[354452830,1740507561584,159.599695,0.00018,15]
[354452831,1740507595738,10000.0,0.00041056,120]
[354452832,1740507605843,10000.0,0.00041056,120]
[354452833,1740507627447,10000.0,0.00041056,120]
[354452834,1740507637284,171.84681,0.00013699,2]
[354452835,1740507778483,156.81,0.000266,31]
[354452846,1740508092052,564550.29851769,0.0004108,60]
[354452847,1740508097520,11143.77479235,0.000125,2]
[354452848,1740508116568,360.34281221,0.0004108,90]
[354452849,1740508122723,3702.62275953,0.0002,120]
[354452850,1740508122748,623.04375436,0.0002,120]
[354452851,1740508124044,449.999999,0.0004108,120]
[354452853,1740508156275,159.599696,0.00018,15]
[354452856,1740508165126,-745.89247498,0.000145,2]
[354452858,1740508215988,200.0,0.0003,30]
[354452979,1740508232597,-680.13206192,0.000145,2]
[354453011,1740508242002,21118.55576504,0.00028873,54]
[354453046,1740508345104,268.06646479,0.0003,10]
[354453049,1740508423355,5000.0,0.00041078,120]
[354453050,1740508471239,5000.0,0.00041078,120]
[354453051,1740508581735,5000.0,0.00041078,120]
[354453052,1740508714795,16894.844612,0.00027568,47]
[354453053,1740508733849,172.150083,0.00013699,2]
[354453054,1740509239439,13515.8756896,0.00023405,22]
[354453060,1740509383664,990.42825653,0.0003,10]
[354453061,1740509428286,5000.0,0.0003,10]
[354453078,1740509432585,-300.0,0.00014352,2]
[354453080,1740509432595,-19603.87691479,0.00014353,2]
[354453082,1740509432605,-500.0,0.00014373,2]
[354453084,1740509432614,-500.0,0.00014373,2]
[354453086,1740509432624,-500.2436958,0.00014373,2]
[354453088,1740509432634,-155.15670025,0.00014373,2]
[354453090,1740509432644,-649.36956004,0.000145,2]
[354453092,1740509432654,-500.0,0.00015775,2]
[354453094,1740509432664,-13515.8756896,0.000162,2]
[354453096,1740509432674,-285.52569933,0.0001884,2]
[354453098,1740509432684,-500.0,0.0001884,2]
[354453100,1740509432693,-500.0,0.0001884,2]
[354453102,1740509432703,-500.0,0.0001884,2]
[354453104,1740509432712,-151.15230314,0.0001884,2]
[354453106,1740509432722,-515.60521562,0.00019852,2]
[354453108,1740509432734,-1000.0,0.00019852,2]
[354453110,1740509432747,-406.89793512,0.000203,2]
[354453113,1740509432757,-406.8979349,0.000203,2]
[354453115,1740509432767,-406.8979349,0.000203,2]
[354453117,1740509432781,-406.8979349,0.00020831,2]
[354453119,1740509432791,-23477.45455765,0.00021131,2]
[354453121,1740509432803,-2420.0,0.00021131,2]
[354453124,1740509432824,-3206.91590827,0.00021131,2]
[354453125,1740509432836,-483.525,0.00021131,2]
[354453140,1740509437886,-8129.0454677,0.00021131,2]
[354453172,1740509443710,1550.29292721,0.0003,10]
[354453173,1740509443876,-15.22229541,0.00021131,2]
[354453174,1740509443889,-969.69,0.00021131,2]
[354453183,1740509446016,-19667.15359757,0.00021131,2]
[354453184,1740509446026,-500.0,0.00021173,2]
[354453185,1740509446039,-500.0,0.00021173,2]
[354453186,1740509446048,-500.0,0.00021173,2]
[354453187,1740509446059,-500.0,0.00021173,2]
[354453188,1740509446069,-500.0,0.00021173,2]
[354453189,1740509446078,-500.0,0.00021173,2]
[354453190,1740509446087,-406.8979349,0.00022141,3]
[354453191,1740509446098,-166.0,0.0002232,2]
[354453192,1740509446108,-406.8979349,0.00023452,3]
[354453193,1740509446117,-811.65279154,0.00024319,2]
[354453194,1740509446127,-1000.0,0.00024319,2]
[354453195,1740509446137,-406.8979349,0.00024762,3]
[354453196,1740509446146,-406.8979349,0.00026072,4]
[354453197,1740509446155,-1000.0,0.00026652,2]
[354453198,1740509446165,-1000.0,0.00026652,2]
[354453199,1740509446175,-1000.0,0.00026652,2]
[354453200,1740509446185,-406.8979349,0.00027383,4]
[354453201,1740509446195,-172.150083,0.00027397,2]
[354453202,1740509446205,-238.7,0.00027533,2]
[354453203,1740509446215,-23520.42292809,0.00027543,2]
[354453204,1740509458536,658.88375293,0.0003,10]
[354453205,1740509630184,8176.41916996,0.00027443,46]
[354453206,1740509835017,1010.07915014,0.00041077,61]
[354453207,1740509943278,5000.0,0.00041077,120]
[354453208,1740509987821,5000.0,0.00041077,120]
[354453209,1740510035825,6541.13533596,0.00028314,51]
[354453211,1740510197736,5000.0,0.00041078,120]
[354453212,1740510205610,5000.0,0.00041078,120]
[354453216,1740510435912,5232.90826877,0.00028282,51]
[354453217,1740510550132,-617.73595695,0.00021031,8]
[354453223,1740510632542,-4615.17231185,0.00021031,8]
[354453224,1740510632552,-4545.60475155,0.00021089,2]
[354453269,1740510643231,-1934.51292787,0.00021089,2]
[354453276,1740510687018,1000.0,0.00029,28]
[354453277,1740510687466,1000.0,0.00029,28]
[354453278,1740510688506,1000.0,0.00029,28]
[354453279,1740510688942,1000.0,0.00029,28]
[354453280,1740510689319,1000.0,0.00029,28]
[354453281,1740510689736,1000.0,0.00029,28]
[354453282,1740510690138,1000.0,0.00029,28]
[354453283,1740510690553,1000.0,0.00029,28]
[354453284,1740510690846,1000.0,0.00029,28]
[354453285,1740510691251,1000.0,0.00029,28]
[354453286,1740510692161,1000.0,0.00029,28]
[354453287,1740510692525,1000.0,0.00029,28]
[354453288,1740510692811,1000.0,0.00029,28]
[354453289,1740510693310,1000.0,0.00029,28]
[354453290,1740510693873,1000.0,0.00029,28]
[354453291,1740510694312,1000.0,0.00029,28]
[354453292,1740510694768,1000.0,0.00029,28]
[354453293,1740510695069,1000.0,0.00029,28]
[354453294,1740510695444,1000.0,0.00029,28]
[354453295,1740510695857,69.94630685,0.00029,28]
[354453298,1740511397432,15008.40740648,0.00041093,30]
[354453307,1740511692391,110639.44181045,0.00041093,60]
[354453308,1740511715018,9568.40894594,0.00041093,120]
[354453335,1740511832488,-301.253389,0.00024381,2]
[354453338,1740511832506,-250.0,0.00025271,2]
[354453341,1740511832525,-160.0,0.00025697,2]
[354453344,1740511832545,-1234.3212245,0.00025749,2]
[354453347,1740511832566,-3139.74496127,0.00026055,38]
[354453350,1740511832581,-4180.39083418,0.00026155,2]
[354453359,1740511832668,-20719.60916582,0.00026155,2]
[354453362,1740511832686,-500.79517893,0.00026173,2]
[354453364,1740511832700,-500.0,0.00026173,2]
[354453367,1740511832716,-500.0,0.00026173,2]
[354453369,1740511832731,-500.5907966,0.00026173,2]
[354453372,1740511832746,-247.64631183,0.00026173,2]
[354453375,1740511832762,-385.69618198,0.00026173,2]
[354453377,1740511832778,-277.22365967,0.00026173,2]
[354453378,1740511832794,-156.72994942,0.00026173,2]
[354453380,1740511832810,-629.35521693,0.00026173,2]
[354453384,1740511832825,-500.0,0.00026173,2]
[354453387,1740511832841,-500.0,0.00026173,2]
[354453390,1740511832856,-284.82855443,0.000269,4]
[354453393,1740511832872,-628.4345798,0.00026992,4]
[354453394,1740511832889,-391.4611652,0.00027542,2]
[354453396,1740511832904,-151.0,0.00027542,2]
[354453399,1740511832919,-284.82855443,0.00027866,4]
[354453401,1740511832934,-774.40594007,0.00028808,2]
[354453404,1740511832949,-284.82855443,0.00028831,5]
[354453406,1740511832964,-152.58021795,0.00028898,2]
[354453408,1740511832979,-500.22613263,0.00028973,5]
[354453409,1740511832994,-417.60366211,0.00028973,5]
[354453410,1740511833009,-500.0,0.00028973,5]
[354453411,1740511833025,-581.39287826,0.00028973,5]
[354453412,1740511833041,-500.0,0.00028973,5]
[354453413,1740511833057,-500.0,0.00028973,5]
[354453414,1740511833074,-500.0,0.00028973,5]
[354453415,1740511833090,-500.0,0.00028973,5]
[354453416,1740511833106,-500.0,0.00028973,5]
[354453417,1740511833121,-151.0,0.00028973,7]
[354453418,1740511833137,-151.0,0.00028973,7]
[354453419,1740511833153,-151.0,0.00028973,7]
[354453420,1740511833169,-702.56193,0.00028973,7]
[354453421,1740511833186,-702.56193,0.00028973,7]
[354453422,1740511833202,-151.0,0.00028973,7]
[354453423,1740511833219,-7175.3482729,0.00028986,3]
[354453424,1740511833235,-356.95908032,0.00028986,3]
[354453425,1740511833250,-3587.67413645,0.00028987,3]
[354453426,1740511833267,-178.47954016,0.00028987,3]
[354453427,1740511833283,-151.0,0.00028988,7]
[354453428,1740511833299,-151.0,0.00028988,7]
[354453429,1740511833316,-151.296802,0.00028988,7]
[354453430,1740511833333,-151.0,0.00028988,7]
[354453431,1740511833350,-702.56193,0.00028988,7]
[354453432,1740511833366,-702.56193,0.00028988,7]
[354453433,1740511833383,-151.0,0.00028988,7]
[354453434,1740511833400,-7175.3482729,0.00028988,3]
[354453435,1740511833415,-356.95908032,0.00028988,3]
[354453436,1740511833437,-160.0,0.00028988,3]
[354453437,1740511833454,-3587.67413645,0.00028989,3]
[354453438,1740511833482,-178.47954016,0.00028989,3]
[354453439,1740511833512,-155.407299,0.00028989,7]
[354453440,1740511833529,-151.0,0.00028989,7]
[354453441,1740511833549,-151.0,0.00028989,7]
[354453442,1740511833569,-285.7,0.00028989,7]
[354453443,1740511833589,-285.7,0.00028989,7]
[354453444,1740511833605,-659.024336,0.00028989,7]
[354453445,1740511833623,-659.024336,0.00028989,7]
[354453446,1740511833641,-269.295939,0.00028989,7]
[354453447,1740511833657,-269.295939,0.00028989,7]
[354453448,1740511833673,-151.0,0.0002899,7]
[354453449,1740511833693,-409.123741,0.0002899,7]
[354453450,1740511833710,-409.123741,0.0002899,7]
[354453451,1740511833725,-397.577931,0.0002899,7]
[354453452,1740511833739,-397.577931,0.0002899,7]
[354453453,1740511833751,-285.840366,0.0002899,7]
[354453454,1740511833762,-151.0,0.0002899,7]
[354453455,1740511833774,-366.549646,0.0002899,7]
[354453456,1740511833784,-366.549646,0.0002899,7]
[354453457,1740511833796,-151.0,0.0002899,7]
[354453458,1740511833806,-151.0,0.0002899,7]
[354453459,1740511833817,-151.0,0.0002899,7]
[354453460,1740511833832,-151.0,0.0002899,7]
[354453461,1740511833842,-151.0,0.0002899,7]
[354453462,1740511833853,-151.0,0.0002899,7]
[354453463,1740511834203,-151.0,0.0002899,7]
[354453464,1740511834245,-151.0,0.0002899,7]
[354453465,1740511834257,-256.673156,0.0002899,7]
[354453466,1740511834268,-256.673156,0.0002899,7]
[354453467,1740511834277,-553.687194,0.0002899,3]
[354453468,1740511834287,-553.687194,0.0002899,3]
[354453469,1740511834297,-870.35417,0.0002899,7]